bitfinex/quotes_BTCUSD_20240902
["timestamp","ask_amount","ask_price","bid_price","bid_amount"]
[1725318933314,0.04340436,59423.0,59422.0,0.36282537]
[1725318933546,0.04340436,59423.0,59422.0,0.63208537]
[1725318933547,0.04240436,59423.0,59422.0,0.63208537]
[1725318933771,0.04240436,59423.0,59422.0,1.17060537]
[1725318934219,0.03540436,59423.0,59422.0,0.90134537]
[1725318934651,0.02640436,59423.0,59422.0,0.90134537]
[1725318935129,0.02840436,59423.0,59422.0,0.87161811]
[1725318935384,0.03240436,59423.0,59422.0,0.87161811]
[1725318935621,0.02840436,59423.0,59422.0,0.87161811]
[1725318935870,0.02940436,59423.0,59422.0,0.87261811]
[1725318936123,0.52851014,59423.0,59422.0,0.05566811]
[1725318936367,0.79776614,59423.0,59422.0,0.05566811]
[1725318936605,0.85856614,59423.0,59422.0,0.009965]
[1725318937073,0.85656614,59423.0,59422.0,0.009965]
[1725318937529,0.85756614,59423.0,59422.0,0.010965]
[1725318937763,0.85656614,59423.0,59422.0,0.009965]
[1725318938009,0.85556614,59423.0,59422.0,0.008965]
[1725318938254,0.91945587,59423.0,59422.0,0.010965]
[1725318938491,0.92045587,59423.0,59422.0,0.010965]
[1725318938964,0.85965587,59423.0,59422.0,0.010965]
[1725318940975,0.90514059,59423.0,59422.0,0.010965]
[1725318941199,0.85965587,59423.0,59422.0,0.010965]
[1725318941883,0.70254436,59423.0,59422.0,0.010965]
[1725318944036,0.97180036,59423.0,59422.0,0.010965]
[1725318953439,0.16303236,59423.0,59422.0,0.152565]
[1725318953676,0.43228836,59423.0,59422.0,0.152565]
[1725318953894,0.16303236,59423.0,59422.0,0.19826811]
[1725318954370,0.16403236,59423.0,59422.0,0.19826811]
[1725318955512,0.16403236,59423.0,59422.0,0.23254618]
[1725318955513,0.02840436,59423.0,59422.0,0.23254618]
[1725318955786,0.02840436,59423.0,59422.0,1.25374532]
[1725318955994,0.02840436,59423.0,59422.0,1.48158128]
[1725318956224,0.002,59423.0,59422.0,1.50158128]
[1725318956459,0.000816,59430.0,59429.0,0.404842]
[1725318956695,0.000816,59430.0,59429.0,1.23760951]
[1725318956922,0.000816,59430.0,59429.0,1.55250806]
[1725318957150,0.000816,59430.0,59429.0,1.55150806]
[1725318957386,0.000816,59430.0,59429.0,1.56150806]
[1725318957608,0.000816,59431.0,59430.0,1.354108]
[1725318957820,0.000816,59431.0,59430.0,1.4217739]
[1725318958343,0.02639786,59442.0,59441.0,1.002909]
[1725318958583,0.02639786,59442.0,59441.0,1.24182051]
[1725318958812,0.02639786,59442.0,59441.0,1.30862917]
[1725318959045,0.02639786,59442.0,59441.0,1.30762917]
[1725318959949,0.02639786,59442.0,59441.0,1.30662917]
[1725318960629,0.02739786,59442.0,59441.0,1.32862917]
[1725318962006,0.02739786,59442.0,59441.0,1.32843917]
[1725318963495,0.001,59442.0,59441.0,1.32843917]
[1725318965267,0.001,59442.0,59441.0,0.88095976]
[1725318965503,0.001,59442.0,59441.0,0.14941476]
[1725318965733,0.002,59442.0,59441.0,0.28489936]
[1725318965977,0.002,59442.0,59441.0,0.28826358]
[1725318965978,0.002816,59442.0,59441.0,0.28826358]
[1725318966429,0.002816,59442.0,59441.0,0.55743758]
[1725318967978,0.002816,59442.0,59441.0,0.15367658]
[1725318968207,0.002816,59442.0,59441.0,0.15031236]
[1725318969039,0.004816,59442.0,59441.0,0.15031236]
[1725318971704,0.1394,59442.0,59441.0,0.15031236]
[1725318971930,0.1394,59442.0,59441.0,0.06851236]
[1725318971931,0.408569,59442.0,59441.0,0.06851236]
[1725318972170,0.677738,59442.0,59441.0,0.06851236]
[1725318972427,0.677738,59442.0,59441.0,0.0228976]
[1725318973308,0.676738,59442.0,59441.0,0.0008976]
[1725318973785,0.676738,59442.0,59441.0,0.0188976]
[1725318973786,0.677738,59442.0,59441.0,0.0188976]
[1725318973984,0.677738,59442.0,59441.0,0.0088976]
[1725318974222,0.676738,59442.0,59441.0,0.0098976]
[1725318974646,0.677738,59442.0,59441.0,0.0178976]
[1725318976327,0.946907,59442.0,59441.0,0.0178976]
[1725318978727,1.292176,59442.0,59441.0,0.0178976]
[1725318978946,1.352376,59442.0,59441.0,0.0178976]
[1725318979617,1.351376,59442.0,59441.0,0.0098976]
[1725318980145,1.351376,59442.0,59441.0,0.0058976]
[1725318980377,1.351376,59442.0,59441.0,0.0008976]
[1725318980613,1.353376,59442.0,59441.0,0.0008976]
[1725318980835,1.358376,59442.0,59441.0,0.0018976]
[1725318981295,1.351376,59442.0,59441.0,0.0008976]
[1725318981526,1.41395731,59442.0,59441.0,0.0008976]
[1725318981753,1.359376,59442.0,59441.0,0.0018976]
[1725318981979,1.351376,59442.0,59441.0,0.0008976]
[1725318982714,2.43446767,59442.0,59441.0,0.0008976]
[1725318982947,2.62601931,59442.0,59441.0,0.0008976]
[1725318983189,2.65607748,59442.0,59441.0,0.0008976]
[1725318983422,2.68207748,59442.0,59441.0,0.0018976]
[1725318983897,2.64617139,59442.0,59441.0,0.0018976]
[1725318984137,1.778536,59442.0,59441.0,0.0018976]
[1725318984376,1.507376,59442.0,59441.0,0.0018976]
[1725318984601,1.629933,59442.0,59441.0,0.0018976]
[1725318985599,1.630933,59442.0,59441.0,0.0018976]
[1725318986558,0.752092,59427.0,59426.0,0.04936244]
[1725318986787,1.51387751,59427.0,59426.0,0.04936244]
[1725318987031,0.67614,59423.0,59422.0,0.008965]
[1725318987261,1.10250751,59423.0,59422.0,0.008965]
[1725318989632,1.10450751,59423.0,59422.0,0.015965]
[1725318992199,1.17000751,59423.0,59422.0,0.015965]
[1725318994330,1.71951951,59423.0,59422.0,0.015965]
[1725318994526,2.18428151,59423.0,59422.0,0.015965]
[1725318994782,1.62506351,59423.0,59422.0,0.015965]
[1725318995753,1.62406351,59423.0,59422.0,0.015965]
[1725318995935,1.62806351,59423.0,59422.0,0.015965]
[1725318996170,1.62806351,59423.0,59422.0,0.008965]
[1725318996171,1.62706351,59423.0,59422.0,0.008965]
[1725318996394,1.63506351,59423.0,59422.0,0.008965]
[1725318996600,1.80361515,59423.0,59422.0,0.008965]
[1725318996852,1.82477976,59423.0,59422.0,0.008965]
[1725318997753,1.82577976,59423.0,59422.0,0.008965]
[1725318998516,1.66766825,59423.0,59422.0,0.008965]
[1725318998725,1.63506351,59423.0,59422.0,0.008965]
[1725318999509,1.62506351,59423.0,59422.0,0.008965]
[1725318999730,1.62206351,59423.0,59422.0,0.008965]
[1725319000156,1.63406351,59423.0,59422.0,0.009965]
[1725319001435,1.55826351,59423.0,59422.0,0.009965]
[1725319004827,1.28900751,59423.0,59422.0,0.009965]
[1725319005047,1.22350751,59423.0,59422.0,0.009965]
[1725319007406,1.066396,59423.0,59422.0,0.009965]
[1725319007624,1.22350751,59423.0,59422.0,0.009965]
[1725319018258,1.50999069,59423.0,59422.0,0.009965]
[1725319018743,1.22350751,59423.0,59422.0,0.009965]
[1725319018974,0.95425151,59423.0,59422.0,0.009965]
[1725319023485,1.28700751,59423.0,59422.0,0.009965]
[1725319026623,1.29700751,59423.0,59422.0,0.009965]
[1725319027740,1.30844561,59423.0,59422.0,0.009965]
[1725319028370,1.45006075,59423.0,59422.0,0.009965]
[1725319028573,1.30844561,59423.0,59422.0,0.009965]
[1725319029045,1.1413341,59423.0,59422.0,0.009965]
[1725319029298,1.29844561,59423.0,59422.0,0.009965]
[1725319029538,1.23494561,59423.0,59422.0,0.009965]
[1725319037961,1.17211139,59423.0,59422.0,0.009965]
[1725319042092,1.064396,59423.0,59422.0,0.009965]
[1725319042326,1.16067329,59423.0,59422.0,0.009965]
[1725319051349,1.22277329,59423.0,59422.0,0.009965]
[1725319052220,1.37677136,59423.0,59422.0,0.009965]
[1725319052445,2.64538252,59423.0,59422.0,0.009965]
[1725319052675,2.87785181,59423.0,59422.0,0.009965]
[1725319053098,2.75863681,59423.0,59422.0,0.009965]
[1725319053307,2.66263426,59423.0,59422.0,0.009965]
[1725319054197,1.018727,59421.0,59420.0,0.008976]
[1725319054467,1.141727,59421.0,59420.0,0.008976]
[1725319054677,2.68654412,59421.0,59420.0,0.008976]
[1725319054880,2.71295438,59421.0,59420.0,0.008976]
[1725319055326,2.61116426,59421.0,59420.0,0.008976]
[1725319055557,2.45589114,59421.0,59420.0,0.008976]
[1725319055824,2.36414414,59421.0,59420.0,0.008976]
[1725319056046,2.5024369,59421.0,59420.0,0.009976]
[1725319056284,0.956459,59419.0,59418.0,0.0008976]
[1725319056497,2.82061129,59419.0,59418.0,0.0008976]
[1725319056724,3.25843693,59419.0,59418.0,0.0008976]
[1725319057169,3.25943693,59419.0,59418.0,0.0008976]
[1725319057398,5.43667293,59419.0,59418.0,0.0008976]
[1725319057635,3.62659693,59419.0,59418.0,0.0008976]
[1725319057853,3.64059693,59419.0,59418.0,0.0018976]
[1725319058308,3.90987093,59419.0,59418.0,0.0018976]
[1725319058530,3.64059693,59419.0,59418.0,0.0018976]
[1725319058751,3.68243268,59419.0,59418.0,0.0018976]
[1725319059202,3.66843268,59419.0,59418.0,0.0008976]
[1725319059453,3.95170668,59419.0,59418.0,0.0008976]
[1725319059683,3.68143268,59419.0,59418.0,0.0008976]
[1725319060111,3.69543268,59419.0,59418.0,0.0008976]
[1725319060341,3.69543268,59419.0,59412.0,0.008976]
[1725319060342,1.46113129,59413.0,59412.0,0.008976]
[1725319060556,1.48513129,59413.0,59412.0,0.008976]
[1725319060774,1.58513129,59413.0,59412.0,0.008976]
[1725319061003,1.61054569,59413.0,59412.0,0.008976]
[1725319061444,1.61154569,59413.0,59412.0,0.008976]
[1725319061677,1.61054569,59413.0,59412.0,0.008976]
[1725319061902,1.61154569,59413.0,59412.0,0.008976]
[1725319062135,1.62454569,59413.0,59412.0,0.008976]
[1725319062623,1.63854569,59413.0,59412.0,0.008976]
[1725319062839,1.55734569,59413.0,59412.0,0.008976]
[1725319063055,1.56836739,59413.0,59412.0,0.008976]
[1725319063267,1.56736739,59413.0,59412.0,0.008976]
[1725319063919,1.7010453,59413.0,59412.0,0.008976]
[1725319064140,2.2167953,59413.0,59412.0,0.008976]
[1725319064569,2.08411739,59413.0,59412.0,0.008976]
[1725319064792,2.09309339,59413.0,59412.0,0.008976]
[1725319064996,2.06629839,59413.0,59412.0,0.008976]
[1725319065228,2.06629839,59413.0,59407.0,0.008965]
[1725319065229,0.59496129,59408.0,59407.0,0.008965]
[1725319065475,0.77102,59407.0,59406.0,0.008976]
[1725319065675,3.096912,59407.0,59406.0,0.008976]
[1725319066104,2.953975,59407.0,59406.0,0.008976]
[1725319066308,2.97606636,59407.0,59406.0,0.008976]
[1725319066519,2.92997736,59407.0,59406.0,0.008976]
[1725319066744,2.80422736,59407.0,59406.0,0.008976]
[1725319066965,2.61875836,59407.0,59406.0,0.008976]
[1725319067230,1.47209365,59407.0,59406.0,0.008976]
[1725319067460,1.50267094,59407.0,59406.0,0.008976]
[1725319067656,1.71182494,59407.0,59406.0,0.008976]
[1725319068065,1.78879748,59407.0,59406.0,0.008976]
[1725319068692,1.95834912,59407.0,59406.0,0.008976]
[1725319068908,2.02264912,59407.0,59406.0,0.008976]
[1725319070930,2.03162512,59407.0,59406.0,0.008976]
[1725319072431,2.03244112,59407.0,59406.0,0.008976]
[1725319072631,2.04352123,59407.0,59406.0,0.008976]
[1725319072847,1.87496959,59407.0,59406.0,0.008976]
[1725319073291,1.66581559,59407.0,59406.0,0.008976]
[1725319073759,1.78365759,59407.0,59406.0,0.008976]
[1725319075819,1.76955959,59407.0,59406.0,0.008976]
[1725319076013,1.66581559,59407.0,59406.0,0.008976]
[1725319077236,1.60051559,59407.0,59406.0,0.008976]
[1725319078425,1.75863516,59407.0,59406.0,0.008976]
[1725319078663,1.73661259,59407.0,59406.0,0.008976]
[1725319078891,1.73761259,59407.0,59406.0,0.008976]
[1725319079901,1.73661259,59407.0,59406.0,0.008976]
[1725319080535,1.60051559,59407.0,59406.0,0.008976]
[1725319081229,1.74486559,59407.0,59406.0,0.008976]
[1725319082239,1.60051559,59407.0,59406.0,0.008976]
[1725319082884,0.84052965,59407.0,59406.0,0.151976]
[1725319083071,0.05823365,59407.0,59406.0,0.1680712]
[1725319083283,0.05823365,59407.0,59406.0,0.18402028]
[1725319083503,0.05823365,59407.0,59406.0,0.58801928]
[1725319083504,0.05623365,59407.0,59406.0,0.58801928]
[1725319083904,0.05523365,59407.0,59406.0,0.58801928]
[1725319084109,0.04123365,59407.0,59406.0,0.58801928]
[1725319084331,0.05223365,59407.0,59406.0,0.58801928]
[1725319084525,0.05223365,59407.0,59406.0,0.85735228]
[1725319084913,0.04123365,59407.0,59406.0,0.85735228]
[1725319085129,0.04123365,59407.0,59406.0,0.58801928]
[1725319085562,0.04223365,59407.0,59406.0,0.31868628]
[1725319085979,0.02923365,59407.0,59406.0,0.31868628]
[1725319086452,0.04223365,59407.0,59406.0,0.18402028]
[1725319086667,0.03123365,59407.0,59406.0,0.18402028]
[1725319087119,0.03223365,59407.0,59406.0,0.17902028]
[1725319087346,0.70455365,59407.0,59406.0,0.17902028]
[1725319087564,0.70455365,59407.0,59406.0,0.18102028]
[1725319087565,0.43522565,59407.0,59406.0,0.18102028]
[1725319087777,0.43622565,59407.0,59406.0,0.148976]
[1725319088007,0.43622565,59407.0,59406.0,0.18102028]
[1725319090627,0.03023365,59407.0,59406.0,0.18102028]
[1725319090850,0.03023365,59407.0,59406.0,0.31568628]
[1725319091730,0.03023365,59407.0,59406.0,0.18102028]
[1725319091955,0.03223365,59407.0,59406.0,0.18102028]
[1725319092382,0.03023365,59407.0,59406.0,0.31568628]
[1725319092653,0.03023365,59407.0,59406.0,0.61748551]
[1725319094436,0.03023365,59407.0,59406.0,0.31568628]
[1725319094640,0.03223365,59407.0,59406.0,0.31568628]
[1725319095058,0.03023365,59407.0,59406.0,0.31568628]
[1725319095493,0.03023365,59407.0,59406.0,0.18102028]
[1725319096378,0.03223365,59407.0,59406.0,0.18102028]
[1725319097719,0.03023365,59407.0,59406.0,0.31568628]
[1725319097928,0.03023365,59407.0,59406.0,0.58501928]
[1725319098144,0.03023365,59407.0,59406.0,0.18102028]
[1725319098780,0.03023365,59407.0,59406.0,0.31568628]
[1725319100328,0.03023365,59407.0,59406.0,0.85435228]
[1725319102051,0.02923365,59407.0,59406.0,0.85435228]
[1725319102262,0.02923365,59407.0,59406.0,1.12368528]
[1725319103812,0.002816,59407.0,59406.0,1.12368528]
[1725319112711,0.002816,59407.0,59406.0,0.85435228]
[1725319114596,0.003816,59407.0,59406.0,0.31568628]
[1725319114824,0.407808,59407.0,59406.0,0.03802028]
[1725319115067,0.409808,59407.0,59406.0,0.03802028]
[1725319115527,0.679136,59407.0,59406.0,0.03802028]
[1725319115734,0.409808,59407.0,59406.0,0.03802028]
[1725319115940,0.679136,59407.0,59406.0,0.03802028]
[1725319116407,0.679136,59407.0,59406.0,0.005976]
[1725319116629,0.679136,59407.0,59406.0,0.03796528]
[1725319119832,0.407808,59407.0,59406.0,0.03796528]
[1725319120056,0.13848,59407.0,59406.0,0.03796528]
[1725319120284,0.677136,59407.0,59406.0,0.005976]
[1725319120505,0.679136,59407.0,59406.0,0.03796528]
[1725319120737,0.679136,59407.0,59406.0,0.005976]
[1725319120963,0.679136,59407.0,59406.0,0.03796528]
[1725319121180,0.679136,59407.0,59406.0,0.005976]
[1725319121645,0.679136,59407.0,59406.0,0.03796528]
[1725319121871,0.679136,59407.0,59406.0,0.005976]
[1725319122089,0.679136,59407.0,59406.0,0.03796528]
[1725319122347,0.679136,59407.0,59406.0,0.005976]
[1725319123293,0.679136,59407.0,59406.0,0.03796528]
[1725319123517,0.679136,59407.0,59406.0,0.005976]
[1725319123771,0.679136,59407.0,59406.0,0.03796528]
[1725319123978,0.679136,59407.0,59406.0,0.005976]
[1725319124478,0.679136,59407.0,59406.0,0.03796528]
[1725319124708,0.679136,59407.0,59406.0,0.005976]
[1725319124945,0.679136,59407.0,59406.0,0.03796528]
[1725319125176,0.679136,59407.0,59406.0,0.005976]
[1725319125394,0.679136,59407.0,59406.0,0.03796528]
[1725319125631,0.13848,59407.0,59406.0,0.03796528]
[1725319125857,0.409808,59407.0,59406.0,0.05066941]
[1725319126562,0.003816,59407.0,59406.0,0.23833128]
[1725319126817,0.003816,59407.0,59406.0,0.31693128]
[1725319127064,0.003816,59407.0,59406.0,0.58626428]
[1725319127767,0.005816,59407.0,59406.0,0.58626428]
[1725319127998,0.005816,59407.0,59406.0,0.58201441]
[1725319128224,0.14048,59407.0,59406.0,0.03371541]
[1725319130618,0.14048,59407.0,59406.0,0.03461301]
[1725319138250,0.409808,59407.0,59406.0,0.03461301]
[1725319140192,0.679136,59407.0,59406.0,0.03461301]
[1725319140407,0.409808,59407.0,59406.0,0.03461301]
[1725319140620,0.003816,59407.0,59406.0,0.03461301]
[1725319141569,0.13848,59407.0,59406.0,0.03461301]
[1725319141786,0.003816,59407.0,59406.0,0.03461301]
[1725319142936,0.003816,59407.0,59406.0,0.16927901]
[1725319143163,0.003816,59407.0,59406.0,0.03461301]
[1725319143932,0.003816,59407.0,59406.0,0.43861201]
[1725319144392,0.003816,59407.0,59406.0,0.85224501]
[1725319144853,0.003816,59407.0,59406.0,0.90264288]
[1725319145778,0.003816,59407.0,59406.0,0.36397688]
[1725319146032,0.003816,59407.0,59406.0,0.57030988]
[1725319146570,0.407808,59407.0,59406.0,0.03461301]
[1725319146804,0.474708,59407.0,59406.0,0.03461301]
[1725319147512,0.473708,59407.0,59406.0,0.03288688]
[1725319147737,0.473708,59407.0,59406.0,0.03388688]
[1725319147966,0.474708,59407.0,59406.0,0.03388688]
[1725319148421,0.473708,59407.0,59406.0,0.03388688]
[1725319148641,0.474708,59407.0,59406.0,0.03388688]
[1725319149376,0.744036,59407.0,59406.0,0.0018976]
[1725319152631,0.921136,59407.0,59406.0,0.0018976]
[1725319152868,1.190464,59407.0,59406.0,0.0018976]
[1725319153343,1.189464,59407.0,59406.0,0.0018976]
[1725319153558,1.189464,59407.0,59406.0,0.0008976]
[1725319153559,1.188464,59407.0,59406.0,0.0008976]
[1725319153995,1.36360284,59407.0,59406.0,0.0018976]
[1725319154262,1.188464,59407.0,59406.0,0.0018976]
[1725319154505,1.188464,59407.0,59406.0,0.0008976]
[1725319155229,0.919136,59407.0,59406.0,0.0008976]
[1725319155694,1.188464,59407.0,59406.0,0.0008976]
[1725319155934,1.199464,59407.0,59406.0,0.0008976]
[1725319156158,0.853036,59407.0,59406.0,0.0008976]
[1725319156858,0.850036,59407.0,59406.0,0.0008976]
[1725319157075,0.580708,59407.0,59406.0,0.0008976]
[1725319157293,0.587708,59407.0,59406.0,0.0008976]
[1725319158712,0.857036,59407.0,59406.0,0.0008976]
[1725319162680,0.587708,59407.0,59406.0,0.0008976]
[1725319163146,0.857036,59407.0,59406.0,0.0008976]
[1725319164731,0.587708,59407.0,59406.0,0.0008976]
[1725319165160,0.857036,59407.0,59406.0,0.0008976]
[1725319165966,0.587708,59407.0,59406.0,0.0008976]
[1725319167351,0.522808,59407.0,59406.0,0.0008976]
[1725319167567,0.520808,59407.0,59406.0,0.0008976]
[1725319168194,0.520808,59407.0,59406.0,0.03288688]
[1725319168619,0.25148,59407.0,59406.0,0.03288688]
[1725319168846,0.24448,59407.0,59406.0,0.03288688]
[1725319169034,0.23648,59407.0,59406.0,0.03288688]
[1725319169571,0.23848,59407.0,59406.0,0.03288688]
[1725319171132,0.103816,59407.0,59406.0,0.03288688]
[1725319171333,0.003816,59407.0,59406.0,0.03288688]
[1725319171792,0.103816,59407.0,59406.0,0.03288688]
[1725319173145,0.103816,59407.0,59406.0,0.16755288]
[1725319173384,0.103816,59407.0,59406.0,0.24765288]
[1725319175759,0.001816,59407.0,59406.0,0.24765288]
[1725319176652,0.101816,59407.0,59406.0,0.24765288]
[1725319176856,0.001816,59407.0,59406.0,0.51698588]
[1725319177103,0.001816,59407.0,59406.0,0.24765288]
[1725319177316,0.001816,59407.0,59406.0,0.51698588]
[1725319177528,0.001816,59407.0,59406.0,0.24765288]
[1725319177761,0.000816,59407.0,59406.0,0.94601747]
[1725319178008,0.000816,59407.0,59406.0,1.48804981]
[1725319178211,0.000816,59407.0,59406.0,1.54004981]
[1725319178445,0.000816,59407.0,59406.0,1.80938281]
[1725319178671,0.000816,59407.0,59406.0,1.54004981]
[1725319179115,0.002816,59407.0,59406.0,1.54104981]
[1725319179560,0.002816,59407.0,59406.0,1.7638479]
[1725319179978,0.002816,59407.0,59406.0,1.83807188]
[1725319180418,0.001816,59407.0,59406.0,1.83807188]
[1725319180674,0.02640698,59429.0,59428.0,0.750182]
[1725319180897,0.02640698,59429.0,59428.0,0.97110761]
[1725319181136,0.02640698,59429.0,59428.0,1.34764574]
[1725319181345,0.02640698,59429.0,59428.0,1.27225825]
[1725319181770,0.02640698,59429.0,59428.0,1.34655202]
[1725319182205,0.003,59440.0,59439.0,0.134591]
[1725319182436,0.003,59440.0,59439.0,0.210691]
[1725319182667,0.003,59440.0,59439.0,0.10898184]
[1725319183137,0.003,59440.0,59439.0,0.10798184]
[1725319183838,0.003,59440.0,59439.0,0.03588184]
[1725319183839,0.468268,59440.0,59439.0,0.03588184]
[1725319184059,0.737447,59440.0,59439.0,0.03588184]
[1725319184287,0.737447,59440.0,59439.0,0.005]
[1725319185441,0.738447,59440.0,59439.0,0.01]
[1725319186119,0.002,59433.0,59432.0,0.0797]
[1725319186565,0.002,59433.0,59432.0,0.11155462]
[1725319186963,0.02840097,59433.0,59432.0,0.11155462]
[1725319188527,0.16500597,59433.0,59432.0,0.12355462]
[1725319188748,0.43421597,59433.0,59432.0,0.12355462]
[1725319188989,0.001,59433.0,59432.0,0.76686661]
[1725319189221,0.001,59433.0,59432.0,1.17690612]
[1725319189903,0.000816,59441.0,59440.0,0.548368]
[1725319190128,0.000816,59441.0,59440.0,0.74276608]
[1725319190351,0.000816,59441.0,59440.0,0.77459466]
[1725319190574,0.000816,59441.0,59440.0,0.34839005]
[1725319191250,0.000816,59441.0,59440.0,0.34739005]
[1725319191480,0.000816,59441.0,59440.0,0.61656905]
[1725319191710,0.000816,59441.0,59440.0,0.34739005]
[1725319191959,0.000816,59441.0,59440.0,0.34639005]
[1725319192184,0.001816,59441.0,59440.0,0.62756905]
[1725319192449,0.002816,59441.0,59440.0,0.63956905]
[1725319193368,0.002816,59441.0,59440.0,0.90874805]
[1725319193599,0.02921185,59441.0,59440.0,0.90874805]
[1725319193825,0.02921185,59441.0,59440.0,0.05582858]
[1725319193826,0.03221185,59441.0,59440.0,0.05582858]
[1725319194045,0.16679885,59441.0,59440.0,0.05582858]
[1725319194496,0.03221185,59441.0,59440.0,0.05582858]
[1725319194723,0.43597285,59441.0,59440.0,0.05582858]
[1725319194999,0.70514685,59441.0,59440.0,0.05582858]
[1725319195225,0.70514685,59441.0,59440.0,0.024]
[1725319199735,0.43597285,59441.0,59440.0,0.024]
[1725319200220,0.43597285,59441.0,59440.0,0.05582858]
[1725319201622,0.43597285,59441.0,59440.0,0.024]
[1725319202285,0.43397285,59441.0,59440.0,0.024]
[1725319202516,0.16679885,59441.0,59440.0,0.024]
[1725319202735,0.02921185,59441.0,59440.0,0.58381736]
[1725319202959,0.02921185,59441.0,59440.0,0.61564594]
[1725319203416,0.02921185,59441.0,59440.0,0.88482494]
[1725319203676,0.02921185,59441.0,59440.0,1.15400394]
[1725319212221,0.000816,59442.0,59441.0,1.113509]
[1725319212463,0.000816,59442.0,59441.0,1.505683]
[1725319212705,0.000816,59443.0,59442.0,1.12811661]
[1725319212947,0.000816,59443.0,59442.0,0.546153]
[1725319213161,0.000816,59443.0,59442.0,0.84714408]
[1725319213392,0.000816,59443.0,59442.0,0.89709269]
[1725319213876,0.000816,59443.0,59442.0,0.89609356]
[1725319214607,0.000816,59443.0,59442.0,0.84614408]
[1725319214852,0.001816,59443.0,59442.0,0.86014408]
[1725319215078,0.001816,59443.0,59442.0,0.9350864]
[1725319215309,0.001816,59443.0,59442.0,0.9490864]
[1725319216007,0.001816,59443.0,59442.0,0.87414408]
[1725319216463,0.001816,59443.0,59442.0,0.9490864]
[1725319217535,0.001816,59443.0,59442.0,0.94915942]
[1725319218442,0.001816,59443.0,59442.0,0.87414408]
[1725319218633,0.001816,59443.0,59442.0,0.94919907]
[1725319219609,0.001816,59443.0,59442.0,0.87414408]
[1725319220245,0.001816,59443.0,59442.0,0.97426292]
[1725319220467,0.001816,59443.0,59442.0,0.87414408]
[1725319221424,0.001816,59443.0,59442.0,0.99929263]
[1725319221674,0.001816,59443.0,59442.0,0.87414408]
[1725319221907,0.001816,59443.0,59442.0,0.60497508]
[1725319222339,0.001816,59443.0,59442.0,0.54367508]
[1725319223561,0.001816,59443.0,59442.0,0.05982208]
[1725319224501,0.063316,59443.0,59442.0,0.05982208]
[1725319225874,0.065316,59443.0,59442.0,0.05982208]
[1725319226312,0.063316,59443.0,59442.0,0.05982208]
[1725319226567,0.065316,59443.0,59442.0,0.05982208]
[1725319227243,0.065316,59443.0,59442.0,0.06071968]
[1725319227484,0.065316,59443.0,59442.0,0.18633546]
[1725319227685,0.065316,59443.0,59442.0,0.18634174]
[1725319228141,0.738228,59443.0,59442.0,0.06071968]
[1725319228373,1.008393,59443.0,59442.0,0.06071968]
[1725319228802,0.739228,59443.0,59442.0,0.07953594]
[1725319229277,0.738228,59443.0,59442.0,0.06553594]
[1725319229528,0.738228,59443.0,59442.0,0.07953594]
[1725319229764,0.738228,59443.0,59442.0,0.06071968]
[1725319229994,0.738228,59443.0,59442.0,0.03271968]
[1725319230211,0.738228,59443.0,59442.0,0.04771968]
[1725319230446,0.738228,59443.0,59442.0,0.0018976]
[1725319230678,0.738228,59443.0,59442.0,0.0008976]
[1725319230962,0.739228,59443.0,59442.0,0.0008976]
[1725319231846,0.470063,59443.0,59442.0,0.0008976]
[1725319232100,0.470063,59443.0,59442.0,0.03006011]
[1725319232328,0.470063,59443.0,59442.0,0.0008976]
[1725319232538,0.470063,59443.0,59442.0,0.03006011]
[1725319232755,0.199898,59443.0,59442.0,0.02256865]
[1725319232973,0.199898,59443.0,59442.0,0.03206011]
[1725319232974,0.196898,59443.0,59442.0,0.03206011]
[1725319233222,0.196898,59443.0,59442.0,0.0028976]
[1725319233484,0.196898,59443.0,59442.0,0.03206011]
[1725319233677,0.196898,59443.0,59442.0,0.03006011]
[1725319233891,0.198898,59443.0,59442.0,0.03806011]
[1725319234137,0.000816,59443.0,59442.0,0.19918996]
[1725319234347,0.000816,59443.0,59442.0,0.54374444]
[1725319234564,0.000816,59443.0,59442.0,0.46835896]
[1725319235256,0.000816,59443.0,59442.0,0.56886731]
[1725319235485,0.000816,59443.0,59442.0,0.73752796]
[1725319236218,0.000816,59443.0,59442.0,0.73852796]
[1725319236439,0.000816,59443.0,59442.0,0.74652796]
[1725319236675,0.000816,59443.0,59442.0,0.74052796]
[1725319237130,0.000816,59443.0,59442.0,0.74952796]
[1725319237374,0.000816,59443.0,59442.0,0.85003631]
[1725319237594,0.000816,59443.0,59442.0,0.74952796]
[1725319238250,0.000816,59443.0,59442.0,0.85003631]
[1725319238476,0.000816,59443.0,59442.0,0.74952796]
[1725319239229,0.000816,59443.0,59442.0,0.82494129]
[1725319239908,0.000816,59443.0,59442.0,0.82494041]
[1725319240362,0.000816,59443.0,59442.0,0.48035896]
[1725319240605,0.063316,59443.0,59442.0,0.5557516]
[1725319240817,0.063316,59443.0,59442.0,0.2865826]
[1725319241032,0.065316,59443.0,59442.0,0.26145229]
[1725319242899,0.065316,59443.0,59442.0,0.21118996]
[1725319244455,0.000816,59443.0,59442.0,0.21118996]
[1725319244670,0.000816,59443.0,59442.0,0.26145229]
[1725319244897,0.000816,59443.0,59442.0,0.26147654]
[1725319246578,0.000816,59443.0,59442.0,0.53064554]
[1725319246810,0.000816,59443.0,59442.0,0.48035896]
[1725319247036,0.000816,59443.0,59442.0,0.5306546]
[1725319247264,0.000816,59443.0,59442.0,0.48035896]
[1725319248371,0.000816,59443.0,59442.0,0.55578884]
[1725319249935,0.000816,59443.0,59442.0,0.48035896]
[1725319250164,0.000816,59443.0,59442.0,0.55582294]
[1725319251321,0.000816,59443.0,59442.0,0.48035896]
[1725319251780,0.000816,59443.0,59442.0,0.5809776]
[1725319251999,0.000816,59443.0,59442.0,0.48035896]
[1725319252220,0.02721061,59443.0,59442.0,0.48035896]
[1725319252676,0.02721061,59443.0,59442.0,0.52627444]
[1725319252928,0.02721061,59443.0,59442.0,0.52627437]
[1725319253153,0.02721061,59443.0,59442.0,0.45081311]
[1725319253597,0.02721061,59443.0,59442.0,0.55143175]
[1725319253812,0.02721061,59443.0,59442.0,0.45081311]
[1725319254253,0.02721061,59443.0,59442.0,0.55143175]
[1725319254467,0.02721061,59443.0,59442.0,0.45081311]
[1725319254709,0.02721061,59443.0,59442.0,1.05525111]
[1725319254917,0.02721061,59443.0,59442.0,1.25632441]
[1725319258017,0.000816,59443.0,59442.0,1.25632441]